Workbook

Sheet Приложение №2
A1: "СОГЛАСОВАНО" | AF1: "УТВЕРЖДАЮ" | AN1: Приложение №2
A2: Директор РЦФКиЮС МДМиС РТ | AF2: Начальник УФиС Исполнительного комитета
A4: ____________________ /М.Т.Рахматуллина/ | AF4: ______________________/Р.М. Насрединов
A7: ПЛАН КОМПЛЕКТОВАНИЯ
A8: Муниципального бюджетного учреждения дополнительного образования города Набережные Челны "Детско-юношеской спортивной школы "Челны"
A9: на 2018 - 2019 учебный год
A11: № | B11: Ф.И.О. | D11: Образование | E11: Штат/совмес. | F11: СО | I11: НП | R11: Т (СС) | AG11: ССМ | AM11: ВСМ | AP11: Всего групп | AQ11: Всего учащ. | AR11: Кол-во час/нед | AS11: Сумма %
J12: 1 г.о. | L12: 2 г.о. | O12: 3 г.о. | R12: 1 г.о. | U12: 2 г.о. | X12: 3 г.о. | AA12: 4 г.о. | AD12: 5 г.о. | AG12: 1 г.о. | AJ12: свыше года
F13: групп | G13: учащихся | H13: часы | I13: групп | J13: учащихся | K13: часы | L13: групп | M13: учащихся | N13: часы | O13: групп | P13: учащихся | Q13: часы | R13: групп | S13: учащихся | T13: часы | U13: групп | V13: учащихся | W13: часы | X13: групп | Y13: учащихся | Z13: часы | AA13: групп | AB13: учащихся | AC13: часы | AD13: групп | AE13: учащихся | AF13: часы | AG13: групп | AH13: учащихся | AI13: часы | AJ13: групп | AK13: учащихся | AL13: часы | AM13: групп | AN13: учащихся | AO13: часы
A14: ОТДЕЛЕНИЕ ХОККЕЯ
F15: 1.5% | I15: 2.4% | L15: 3.6% | O15: 3.6% | R15: 5.6% | U15: 8.3% | X15: 10.0% | AA15: 10.0% | AD15: 11.1% | AG15: 17.0% | AJ15: 20.0% | AM15: 25.0%
A16: 1 | B16: Девятовский Александр Николаевич | C16: Улепнов Эдуард Анатольевич | D16: В | E16: Ш | AD16: 1 | AE16: 10 | AF16: 20 | AP16: =F16+I16+L16+R16+U16+X16+AA16+AD16+AG16+AJ16+AM16 -> 1 | AQ16: 10 | AR16: 20 | AS16: =G16*F15+J16*I15+M16*L15+S16*R15+V16*U15+Y16*X15+AB16*AA15+AE16*AD15+AH16*AG15 -> 1.110
B17: Девятовский Александр Николаевич | D17: В | E17: Ш | I17: 2 | J17: 28 | K17: 12 | AP17: =F17+I17+L17+O17+R17+U17+X17+AA17+AD17+AG17 -> 2 | AQ17: =G17+J17+M17+P17+S17+V17+Y17+AB17+AE17+AH17 -> 28 | AR17: =H17+K17+N17+Q17+T17+W17+Z17+AC17+AF17+AI17+AL17 -> 12 | AS17: =J17*I15+M17*L15+P17*O15+S17*R15+V17*U15+Y17*X15+AB17*AA15+AE17*AD15+AH17*AG15 -> 0.672
A18: 2 | B18: Овчинников Вячеслав Федорович | D18: В | E18: Ш | AD18: 1 | AE18: 10 | AF18: 18 | AP18: =F18+I18+L18+O18+R18+U18+X18+AA18+AD18+AG18 -> 1 | AQ18: =G18+J18+M18+P18+S18+V18+Y18+AB18+AE18+AH18 -> 10 | AR18: =H18+K18+N18+Q18+T18+W18+Z18+AC18+AF18+AI18 -> 18 | AS18: =G18*F15+J18*I15+M18*L15+P18*O15+S18*R15+V18*U15+Y18*X15+AB18*AA15+AE18*AD15+AH18*AG15+AK18*AJ15+AN18*AM15 -> 1.110
B19: Овчинников Вячеслав Федорович | C19: Девятовский Александр Николаевич | D19: В | E19: Ш | X19: 1 | Y19: 9 | Z19: 18 | AP19: =F19+I19+L19+R19+U19+X19+AA19+AD19+AG19+AJ19+AM19 -> 1 | AQ19: =G19+J19+M19+S19+V19+Y19+AB19+AE19+AH19+AK19+AN19 -> 9 | AR19: =H19+K19+N19+T19+W19+Z19+AC19+AF19+AI19+AL19+AO19 -> 18 | AS19: =G19*F15+J19*I15+M19*L15+P19*O15+S19*R15+V19*U15+Y19*X15+AB19*AA15+AE19*AD15+AH19*AG15 -> 0.900
A20: 3 | B20: Бубукин Владимир Иванович | D20: В | E20: Ш | AA20: 2 | AB20: 20 | AC20: 36 | AP20: =F20+I20+L20+O20+R20+U20+X20+AA20+AD20+AG20 -> 2 | AQ20: =G20+J20+M20+P20+S20+V20+Y20+AB20+AE20+AH20 -> 20 | AR20: =H20+K20+N20+Q20+T20+W20+Z20+AC20+AF20+AI20 -> 36 | AS20: =G20*F15+J20*I15+M20*L15+P20*O15+S20*R15+V20*U15+Y20*X15+AB20*AA15+AE20*AD15+AH20*AG15 -> 2.000
A21: 4 | B21: Миннеханов Ильдар Анасович | D21: В | E21: Ш | AA21: 1 | AB21: 10 | AC21: 18 | AP21: =F21+I21+L21+O21+R21+U21+X21+AA21+AD21+AG21 -> 1 | AQ21: =G21+J21+M21+P21+S21+V21+Y21+AB21+AE21+AH21 -> 10 | AR21: =H21+K21+N21+Q21+T21+W21+Z21+AC21+AF21+AI21 -> 18 | AS21: =G21*F15+J21*I15+M21*L15+P21*O15+S21*R15+V21*U15+Y21*X15+AB21*AA15+AE21*AD15 -> 1.000
A22: 5 | B22: Ханов Рустам Дамирович | C22: Миннеханов Ильдар Анасович | D22: В | E22: Ш | AA22: 2 | AB22: 20 | AC22: 36 | AP22: =F22+I22+L22+R22+U22+X22+AA22+AD22+AG22+AJ22+AM22 -> 2 | AQ22: =G22+J22+M22+S22+V22+Y22+AB22+AE22+AH22+AK22+AN22 -> 20 | AR22: =H22+K22+N22+T22+W22+Z22+AC22+AF22+AI22+AL22+AO22 -> 36 | AS22: =G22*F15+J22*I15+M22*L15+P22*O15+S22*R15+V22*U15+Y22*X15+AB22*AA15+AE22*AD15+AH22*AG15 -> 2.000
A23: 6 | B23: Сергейчев Виктор Николаевич | C23: Бикмухамедов Шаукат Газизович | D23: В | E23: Ш | X23: 2 | Y23: 20 | Z23: 36 | AP23: 2 | AQ23: 20 | AR23: 36 | AS23: =G23*F15+J23*I15+M23*L15+P23*O15+S23*R15+V23*U15+Y23*X15+AB23*AA15+AE23*AD15+AH23*AG15+AK23*AJ15 -> 2.000
A24: 7 | B24: Аббазов Ильнар Рафикович | D24: В | E24: Ш | U24: 1 | V24: 10 | W24: 15 | X24: 1 | Y24: 10 | Z24: 18 | AP24: =F24+I24+L24+O24+R24+U24+X24+AA24+AD24+AG24 -> 2 | AQ24: =G24+J24+M24+P24+S24+V24+Y24+AB24+AE24+AH24 -> 20 | AR24: =H24+K24+N24+Q24+T24+W24+Z24+AC24+AF24+AI24 -> 33 | AS24: =G24*F15+J24*I15+M24*L15+P24*O15+S24*R15+V24*U15+Y24*X15+AB24*AA15+AE24*AD15+AH24*AG15+AK24*AJ15+AN24*AM15 -> 1.830
A25: 8 | B25: Самигуллин Рафаэль Раилович | C25: Сергейчев Виктор Николаевич | D25: В | E25: Ш | X25: 2 | Y25: 20 | Z25: 36 | AP25: 2 | AQ25: 20 | AR25: 36 | AS25: =G25*F15+J25*I15+M25*L15+P25*O15+S25*R15+V25*U15+Y25*X15+AB25*AA15+AE25*AD15+AH25*AG15 -> 2.000
A26: 9 | B26: Симонов Николай Александрович | C26: Самигуллин Рафаэль Раилович | D26: В | E26: Ш | R26: 2 | S26: 24 | T26: 24 | AP26: =F26+I26+L26+O26+R26+U26+X26+AA26+AD26+AG26 -> 2 | AQ26: =G26+J26+M26+P26+S26+V26+Y26 -> 24 | AR26: =H26+K26+N26+Q26+T26+W26+Z26 -> 24 | AS26: =G26*F15+J26*I15+M26*L15+P26*O15+S26*R15+V26*U15+Y26*X15+AB26*AA15+AE26*AD15+AH26*AG15 -> 1.344
A27: 10 | B27: Соколов Евгений Иванович | D27: В | E27: Ш | I27: 1 | J27: 14 | K27: 6 | O27: 1 | P27: 14 | Q27: 9 | AP27: =F27+I27+L27+O27+R27+U27+X27+AA27+AD27+AG27 -> 2 | AQ27: =G27+J27+M27+P27+S27+V27+Y27+AB27+AE27+AH27 -> 28 | AR27: =H27+K27+N27+Q27+T27+W27+Z27+AC27+AF27+AI27+AL27 -> 15 | AS27: =G27*F15+J27*I15+M27*L15+P27*O15+S27*R15+V27*U15+Y27*X15+AB27*AA15+AE27*AD15+AH27*AG15 -> 0.840
A28: 11 | B28: Пантелеев Виталий Андреевич | D28: В | E28: Ш | L28: 3 | M28: 42 | N28: 27 | AP28: =F28+I28+L28+O28+R28+U28+X28+AA28+AD28+AG28+AJ28+AM28 -> 3 | AQ28: =G28+J28+M28+P28+S28+V28+Y28+AB28+AE28+AH28+AK28+AN28 -> 42 | AR28: =H28+K28+N28+Q28+T28+W28+Z28+AC28+AF28+AI28+AL28+AO28 -> 27 | AS28: =G28*F15+J28*I15+M28*L15+P28*O15+S28*R15+V28*U15+Y28*X15+AB28*AA15+AE28*AD15*AH28*AG15 -> 1.512
A29: 12 | B29: Газимов Ильназ Рашитович | D29: В | E29: Ш | I29: 4 | J29: 54 | K29: 24 | AP29: =F29+I29+L29+O29+R29+U29+X29+AA29+AD29+AG29 -> 4 | AQ29: =G29+J29+M29+P29+S29+V29+Y29+AB29+AE29+AH29 -> 54 | AR29: =H29+K29+N29+Q29+T29+W29+Z29+AC29++AF29+AI29 -> 24 | AS29: 1.344
A30: ИТОГО по отделению: | D30: 12/0 | E30: 12/0 | F30: =SUM(F16:F29) -> 0 | G30: 0 | H30: 0 | I30: 7 | J30: 96 | K30: 42 | L30: 3 | M30: 42 | N30: 27 | O30: 1 | P30: 14 | Q30: 9 | R30: 2 | S30: 24 | T30: 24 | U30: 1 | V30: 10 | W30: 15 | X30: 6 | Y30: 59 | Z30: 108 | AA30: 5 | AB30: 50 | AC30: 90 | AD30: 2 | AE30: 20 | AF30: 38 | AG30: 0 | AH30: 0 | AI30: 0 | AJ30: 0 | AK30: 0 | AL30: 0 | AM30: 0 | AN30: 0 | AO30: 0 | AP30: =SUM(AP16:AP29) -> 27 | AQ30: =SUM(AQ16:AQ29) -> 315 | AR30: =SUM(AR16:AR29) -> 353 | AS30: =SUM(AS16:AS29) -> 19.662
A31: из них по программе спортивной подготовки | D31: 5/0 | E31: 5/0 | F31: 0 | G31: 0 | H31: 0 | I31: 0 | J31: 0 | K31: 0 | L31: 0 | M31: 0 | N31: 0 | O31: 0 | P31: 0 | Q31: 0 | R31: 0 | S31: 0 | T31: 0 | U31: 0 | V31: 0 | W31: 0 | X31: 0 | Y31: 0 | Z31: 0 | AA31: =AA20+AA21+AA22 -> 5 | AB31: =AB20+AB21+AB22 -> 50 | AC31: =AC20+AC21+AC22 -> 90 | AD31: =AD16+AD18 -> 2 | AE31: =AE16+AE18 -> 20 | AF31: =AF16+AF18 -> 38 | AG31: 0 | AH31: 0 | AI31: 0 | AJ31: 0 | AK31: 0 | AL31: 0 | AM31: 0 | AN31: 0 | AO31: 0 | AP31: =AP16+AP18+AP20+AP21+AP22 -> 7 | AQ31: =AQ16+AQ18+AQ20+AQ21+AQ22 -> 70 | AR31: =AR16+AR18+AR20+AR21+AR22 -> 128 | AS31: =AS16+AS18+AS20+AS21+AS22 -> 7.220
A32: ОТДЕЛЕНИЕ ФИГУРНОГО КАТАНИЯ НА КОНЬКАХ
F33: 1.1% | I33: 2.8% | L33: 4.4% | O33: 4.4% | R33: 11.1% | U33: 16.7% | X33: 16.7% | AA33: 18.5% | AD33: 15.3% | AG33: 20.0% | AJ33: 30.0% | AM33: 40.0%
A34: 13 | B34: Ахметзянова Наталья Николаевна | C34: Ахметзянова Наталья Николаевна | D34: В | E34: Ш | X34: 1 | Y34: 6 | Z34: 18 | AP34: =F34+I34+L34+O34+R34+U34+X34+AA34+AD34+AG34 -> 1 | AQ34: 6 | AR34: 18 | AS34: =G34*F33+J34*I33+M34*L33+P34*O33+S34*R33+V34*U33+Y34*X33+AB34*AA33+AE34*AD33+AH34*AG33 -> 1.002
B35: Ахметзянова Наталья Николаевна | D35: В | E35: Ш | I35: 2 | J35: 40 | K35: 20 | AP35: 2 | AQ35: 40 | AR35: 20
A36: 14 | B36: Шашлакова Наталья Владимировна | C36: Ахметзянова Наталья Николаевна | D36: В | E36: Ш | U36: 1 | V36: 6 | W36: 18 | AP36: =F36+I36+L36+O36+R36+U36+X36+AA36+AD36+AG36 -> 1 | AQ36: =G36+J36+M36+P36+S36+V36+Y36+AB36+AE36+AG36 -> 6 | AR36: =H36+K36+N36+Q36+T36+W36+Z36+AC36+AF36+AI36 -> 18 | AS36: =G36*F33+J36*I33+M36*L33+P36*O33+S36*R33+V36*U33+Y36*X33+AB36*AA33+AE36*AD33+AH36*AG33 -> 1.002
B37: Шашлакова Наталья Владимировна | C37: Ахметзянова Наталья Николаевна | D37: В | E37: Ш | L37: 1 | M37: 15 | N37: 12 | AP37: =F37+I37+L37+O37+R37+U37+X37+AA37+AD37+AG37 -> 1 | AQ37: =G37+J37+M37+P37+S37+V37+Y37+AB37+AE37+AH37 -> 15 | AR37: =H37+K37+N37+Q37+T37+W37+Z37+AC37+AF37+AI37 -> 12 | AS37: =G37*F33+J37*I33+M37*L33+P37*O33+S37*R33+V37*U33+Y37*X33+AB37*AA33+AE37*AD33+AH37*AG33 -> 0.660
A38: 15 | B38: Махранова Марина Александровна | D38: В | E38: Ш | O38: 1 | P38: 15 | Q38: 12 | R38: 1 | S38: 8 | T38: 16 | AP38: =F38+I38+L38+O38+R38+U38+X38+AA38+AD38+AG38 -> 2 | AQ38: =G38+J38+M38+P38+S38+V38+Y38+AB38+AE38+AH38 -> 23 | AR38: =H38+K38+N38+Q38+T38+W38+Z38+AC38+AF38+AI38 -> 28 | AS38: =G38*F33+J38*I33+M38*L33+P38*O33+S38*R33+V38*U33+Y38*X33+AB38*AA33+AE38*AD33+AH38*AG33 -> 1.548
B39: Махранова Марина Александровна | D39: В | E39: Ш | I39: 1 | J39: 20 | K39: 10 | AP39: 1 | AQ39: 20 | AR39: 10
A40: 16 | B40: Молчанюк Ольга Юрьевна | D40: В | E40: Ш | Z40: 8 | AP40: 0 | AQ40: 0 | AR40: =K40+N40+Q40+T40+W40+Z40+AC40+AF40+AI40 -> 8 | AS40: 0.445
B41: Молчанюк Ольга Юрьевна | D41: В | E41: Ш | N41: 3 | Q41: 3 | T41: 4 | AP41: =F41+I41+L41+O41+R41+U41+X41+AA41+AD41+AG41 -> 0 | AQ41: =G41+J41+M41+P41+S41+V41+Y41+AB41+AE41+AH41+AK41 -> 0 | AR41: =H41+K41+N41+Q41+T41+W41+Z41+AC41+AF41 -> 10 | AS41: 0.555
A42: 17 | B42: Новикова Юлия Викторовна | C42: Варенова Татьяна Михайловна (постановка программы на льду) | D42: В | E42: Ш | W42: 8 | AP42: 0 | AQ42: 0 | AR42: =K42+N42+Q42+T42+W42+Z42+AC42 -> 8 | AS42: 0.445
A43: ИТОГО по отделению: | D43: 6/0 | E43: 6/0 | F43: =SUM(F34:F42) -> 0 | G43: 0 | H43: 0 | I43: 3 | J43: 60 | K43: 30 | L43: 1 | M43: 15 | N43: 15 | O43: 1 | P43: 15 | Q43: 15 | R43: 1 | S43: 8 | T43: 20 | U43: 1 | V43: 6 | W43: 26 | X43: 1 | Y43: 6 | Z43: 26 | AA43: 0 | AB43: 0 | AC43: 0 | AD43: 0 | AE43: 0 | AF43: 0 | AG43: 0 | AH43: 0 | AI43: 0 | AJ43: 0 | AK43: 0 | AL43: 0 | AM43: 0 | AN43: 0 | AO43: 0 | AP43: =SUM(AP34:AP42) -> 8 | AQ43: =SUM(AQ34:AQ42) -> 110 | AR43: =SUM(AR34:AR42) -> 132 | AS43: =SUM(AS34:AS42) -> 5.657
A44: из них по программе спортивной подготовки | D44: 4/0 | E44: 4/0 | F44: 0 | G44: 0 | H44: 0 | I44: 0 | J44: 0 | K44: 0 | L44: 0 | M44: 0 | N44: 0 | O44: 0 | P44: 0 | Q44: 0 | R44: 0 | S44: 0 | T44: 0 | U44: =U34+U36 -> 1 | V44: =V34+V36 -> 6 | W44: =W34+W36+W40+W42 -> 26 | X44: =X34+X36+X40+X42 -> 1 | Y44: =Y34+Y36+Y40+Y42 -> 6 | Z44: =Z34+Z36+Z40+Z42 -> 26 | AA44: 0 | AB44: 0 | AC44: 0 | AD44: 0 | AE44: 0 | AF44: 0 | AG44: 0 | AH44: 0 | AI44: 0 | AJ44: 0 | AK44: 0 | AL44: 0 | AM44: 0 | AN44: 0 | AO44: 0 | AP44: =AP34+AP36+AP40+AP42 -> 2 | AQ44: =AQ34+AQ36+AQ40+AQ42 -> 12 | AR44: =AR34+AR36+AR40+AR42 -> 52 | AS44: =AS34+AS36+AS40+AS42 -> 2.894
A45: ВСЕГО по организации | D45: 18/0 | E45: 18/0 | F45: =F30+F43 -> 0 | G45: =G30+G43 -> 0 | H45: =H30+H43 -> 0 | I45: =I30+I43 -> 10 | J45: =J30+J43 -> 156 | K45: =K30+K43 -> 72 | L45: =L30+L43 -> 4 | M45: =M30+M43 -> 57 | N45: =N30+N43 -> 42 | O45: =O30+O43 -> 2 | P45: =P30+P43 -> 29 | Q45: =Q30+Q43 -> 24 | R45: =R30+R43 -> 3 | S45: =S30+S43 -> 32 | T45: =T30+T43 -> 44 | U45: =U30+U43 -> 2 | V45: =V30+V43 -> 16 | W45: =W30+W43 -> 41 | X45: =X30+X43 -> 7 | Y45: =Y30+Y43 -> 65 | Z45: =Z30+Z43 -> 134 | AA45: =AA30+AA43 -> 5 | AB45: =AB30+AB43 -> 50 | AC45: =AC30+AC43 -> 90 | AD45: =AD30+AD43 -> 2 | AE45: =AE30+AE43 -> 20 | AF45: =AF30+AF43 -> 38 | AG45: =AG30+AG43 -> 0 | AH45: =AH30+AH43 -> 0 | AI45: =AI30+AI43 -> 0 | AJ45: =AJ30+AJ43 -> 0 | AK45: =AK30+AK43 -> 0 | AL45: =AL30+AL43 -> 0 | AM45: =AM30+AM43 -> 0 | AN45: =AN30+AN43 -> 0 | AO45: =AO30+AO43 -> 0 | AP45: =AP30+AP43 -> 35 | AQ45: =AQ30+AQ43 -> 425 | AR45: =AR30+AR43 -> 485 | AS45: =AS30+AS43 -> 25.319
A46: из них по программе спортивной подготовки | D46: 9/0 | E46: 9/0 | F46: =F31+F44 -> 0 | G46: =G31+G44 -> 0 | H46: =H31+H44 -> 0 | I46: =I31+I44 -> 0 | J46: =J31+J44 -> 0 | K46: =K31+K44 -> 0 | L46: =L31+L44 -> 0 | M46: =M31+M44 -> 0 | N46: =N31+N44 -> 0 | O46: =O31+O44 -> 0 | P46: =P31+P44 -> 0 | Q46: =Q31+Q44 -> 0 | R46: =R31+R44 -> 0 | S46: =S31+S44 -> 0 | T46: =T31+T44 -> 0 | U46: =U31+U44 -> 1 | V46: =V31+V44 -> 6 | W46: =W31+W44 -> 26 | X46: =X31+X44 -> 1 | Y46: =Y31+Y44 -> 6 | Z46: =Z31+Z44 -> 26 | AA46: =AA31+AA44 -> 5 | AB46: =AB31+AB44 -> 50 | AC46: =AC31+AC44 -> 90 | AD46: =AD31+AD44 -> 2 | AE46: =AE31+AE44 -> 20 | AF46: =AF31+AF44 -> 38 | AG46: =AG31+AG44 -> 0 | AH46: =AH31+AH44 -> 0 | AI46: =AI31+AI44 -> 0 | AJ46: =AJ31+AJ44 -> 0 | AK46: =AK31+AK44 -> 0 | AL46: =AL31+AL44 -> 0 | AM46: =AM31+AM44 -> 0 | AN46: =AN31+AN44 -> 0 | AO46: =AO31+AO44 -> 0 | AP46: =AP31+AP44 -> 9 | AQ46: =AQ31+AQ44 -> 82 | AR46: =AR31+AR44 -> 180 | AS46: =AS31+AS44 -> 10.114
D48: Директор организации | L48: ________________ /Р.Т. Файзрахманов/
M49: подпись | P49: расшифровка подписи
D50: Ответственный за составление | L50: ________________ /В.Е. Боброва/
M51: подпись | P51: расшифровка подписи

Sheet ОБРАЗЕЦ
A1: "СОГЛАСОВАНО" | AC1: "УТВЕРЖДАЮ" | AK1: Приложение №2
A2: Директор РЦФКиЮС МДМиС РТ | AC2: Учредитель (Должность, Ф.И.О.)
A4: ____________________ /М.Т.Рахматуллина/ | AC4: __________________ /_______________________________ /
AC5: подпись | AI5: расшифровка подписи
A7: ПЛАН КОМПЛЕКТОВАНИЯ
A8: (полное наименование РСДЮСШОР, СДЮШОР, ДЮСШ)
A9: на 2014 - 2015 учебный год
A11: № | B11: Ф.И.О. | D11: Образование | E11: Штат/совмес. | F11: СО | I11: НП | O11: Т (СС) | AD11: ССМ | AJ11: ВСМ | AM11: Всего групп | AN11: Всего учащ. | AO11: Кол-во час/нед | AP11: Сумма % по нормативу
J12: 1 г.о. | L12: 2 г.о. | O12: 1 г.о. | R12: 2 г.о. | U12: 3 г.о. | X12: 4 г.о. | AA12: 5 г.о. | AD12: 1 г.о. | AG12: 2 г.о.
F13: групп | G13: учащихся | H13: часы | I13: групп | J13: учащихся | K13: часы | L13: групп | M13: учащихся | N13: часы | O13: групп | P13: учащихся | Q13: часы | R13: групп | S13: учащихся | T13: часы | U13: групп | V13: учащихся | W13: часы | X13: групп | Y13: учащихся | Z13: часы | AA13: групп | AB13: учащихся | AC13: часы | AD13: групп | AE13: учащихся | AF13: часы | AG13: групп | AH13: учащихся | AI13: часы | AJ13: групп | AK13: учащихся | AL13: часы
A14: ОТДЕЛЕНИЕ ДЗЮДО
F15: 1.5% | I15: 2.2% | L15: 3.6% | O15: 4.6% | R15: 5.6% | U15: 7.8% | X15: 8.9% | AA15: 10.0% | AD15: 17.0% | AG15: 23.0% | AJ15: %
A16: 1 | D16: В | E16: Ш | L16: 2 | M16: 40 | N16: 18 | U16: 1 | V16: 12 | W16: 14 | AM16: 3 | AN16: 52 | AO16: 32 | AP16: 2.38
A17: 2 | D17: В | E17: Ш | I17: 2 | J17: 40 | K17: 12 | L17: 1 | M17: 20 | N17: 9 | AM17: 3 | AN17: 60 | AO17: 21 | AP17: 1.60
A18: 3 | D18: В | E18: Ш | F18: 1 | G18: 25 | H18: 4 | O18: 1 | P18: 18 | Q18: 10 | R18: 1 | S18: 15 | T18: 12 | AM18: 3 | AN18: 58 | AO18: 26 | AP18: 2.04
A19: ИТОГО по отделению: | E19: 3/0 | F19: 1 | G19: 25 | H19: 4 | I19: 2 | J19: 40 | K19: 12 | L19: 3 | M19: 60 | N19: 27 | O19: 1 | P19: 18 | Q19: 10 | R19: 1 | S19: 15 | T19: 12 | U19: 1 | V19: 12 | W19: 14 | X19: 0 | Y19: 0 | Z19: 0 | AA19: 0 | AB19: 0 | AC19: 0 | AD19: 0 | AE19: 0 | AF19: 0 | AG19: 0 | AH19: 0 | AI19: 0 | AJ19: 0 | AK19: 0 | AL19: 0 | AM19: 9 | AN19: 170 | AO19: 79 | AP19: 6.02
A20: ОТДЕЛЕНИЕ ХОККЕЯ С ШАЙБОЙ
F21: 1.5% | I21: 2.4% | L21: 3.6% | O21: 5.6% | R21: 8.3% | U21: 10.0% | X21: 10.0% | AA21: 11.0% | AD21: 17.0% | AG21: 20.0% | AJ21: %
A22: 4 | D22: В | E22: Ш | O22: 3 | P22: 45 | Q22: 36 | AM22: 3 | AN22: 45 | AO22: 36 | AP22: 2.52
A23: 5 | D23: В | E23: Ш | U23: 2 | V23: 36 | W23: 36 | AM23: 2 | AN23: 36 | AO23: 36 | AP23: 3.60
A24: 6 | D24: В | E24: Ш | AA24: 2 | AB24: 30 | AC24: 36 | AM24: 2 | AN24: 30 | AO24: 36 | AP24: 3.30
A25: 7 | D25: В | E25: Ш | AA25: 2 | AB25: 30 | AC25: 36 | AM25: 2 | AN25: 30 | AO25: 36 | AP25: 3.30
A26: 8 | D26: Н/В | E26: С | L26: 1 | M26: 15 | N26: 9 | AM26: 1 | AN26: 15 | AO26: 9 | AP26: 0.54
A27: 9 | D27: В | E27: Ш | AA27: 2 | AB27: 30 | AC27: 36 | AM27: 2 | AN27: 30 | AO27: 36 | AP27: 3.30
A28: 10 | D28: В | E28: Ш | X28: 2 | Y28: 36 | Z28: 36 | AM28: 2 | AN28: 36 | AO28: 36 | AP28: 3.60
A29: 11 | D29: Ср | E29: Ш | R29: 2 | S29: 36 | T29: 30 | AM29: 2 | AN29: 36 | AO29: 30 | AP29: 2.99
A30: ИТОГО по отделению: | E30: 7/1 | F30: 0 | G30: 0 | H30: 0 | I30: 0 | J30: 0 | K30: 0 | L30: 1 | M30: 15 | N30: 9 | O30: 3 | P30: 45 | Q30: 36 | R30: 2 | S30: 36 | T30: 30 | U30: 2 | V30: 36 | W30: 36 | X30: 2 | Y30: 36 | Z30: 36 | AA30: 6 | AB30: 90 | AC30: 108 | AD30: 0 | AE30: 0 | AF30: 0 | AG30: 0 | AH30: 0 | AI30: 0 | AJ30: 0 | AK30: 0 | AL30: 0 | AM30: 16 | AN30: 258 | AO30: 255 | AP30: 23,15
A31: ОТДЕЛЕНИЕ ФИГУРНОГО КАТАНИЯ
F32: 1.1% | I32: 2.8% | L32: 4.4% | O32: 11.1% | R32: 16.7% | U32: 16.7% | X32: 18.5% | AA32: 0.0% | AD32: 20.0% | AG32: 30.0% | AJ32: %
A33: 12 | D33: В | E33: Ш | I33: 1 | J33: 20 | K33: 10 | L33: 2 | M33: 38 | N33: 24 | AM33: 3 | AN33: 58 | AO33: 34 | AP33: 2.23
A34: 13 | D34: В | E34: Ш | I34: 1 | J34: 20 | K34: 10 | L34: 2 | M34: 38 | N34: 24 | AM34: 3 | AN34: 58 | AO34: 34 | AP34: 2.23
A35: 14 | D35: Н/В | E35: С | I35: 1 | J35: 20 | K35: 10 | AM35: 1 | AN35: 20 | AO35: 10 | AP35: 0.56
A36: ИТОГО по отделению | E36: 2/1 | F36: 0 | G36: 0 | H36: 0 | I36: 3 | J36: 60 | K36: 30 | L36: 4 | M36: 76 | N36: 48 | O36: 0 | P36: 0 | Q36: 0 | R36: 0 | S36: 0 | T36: 0 | U36: 0 | V36: 0 | W36: 0 | X36: 0 | Y36: 0 | Z36: 0 | AA36: 0 | AB36: 0 | AC36: 0 | AD36: 0 | AE36: 0 | AF36: 0 | AG36: 0 | AH36: 0 | AI36: 0 | AJ36: 0 | AK36: 0 | AL36: 0 | AM36: 7 | AN36: 136 | AO36: 78 | AP36: 5.02
A37: ВСЕГО по организации | E37: 12/2 | F37: 1 | G37: 25 | H37: 4 | I37: 5 | J37: 100 | K37: 42 | L37: 8 | M37: 151 | N37: 84 | O37: 4 | P37: 63 | Q37: 46 | R37: 3 | S37: 51 | T37: 42 | U37: 3 | V37: 48 | W37: 50 | X37: 2 | Y37: 36 | Z37: 36 | AA37: 6 | AB37: 90 | AC37: 108 | AD37: 0 | AE37: 0 | AF37: 0 | AG37: 0 | AH37: 0 | AI37: 0 | AJ37: 0 | AK37: 0 | AL37: 0 | AM37: 32 | AN37: 564 | AO37: 412 | AP37: 34.19
AO38: 22.9
D39: Директор организации | L39: ________________ /_________________________ / | AB39: Количество тренерских ставок по штатному расписанию _________
M40: подпись | O40: расшифровка подписи
D41: Ответственный за составление | L41: ________________ /_________________________ /
M42: подпись | O42: расшифровка подписи
